[Event "Late-Titled-Tuesday-Blitz-February-20-2024"]
[Site "Chess.com"]
[Date "2024.02.20"]
[Round "11"]
[White "DanielNaroditsky"]
[Black "Genghis_K"]
[Result "1-0"]
[WhiteElo "3092"]
[BlackElo "2953"]
[TimeControl "180+1"]
[EndTime "16:07:11 PST"]
[Termination "DanielNaroditsky won by checkmate"]

1. e4 {[%clk 0:03:00.9]} 1... c5 {[%clk 0:02:53.1]} 2. c3 {[%clk 0:03:01.1]}
2... Nf6 {[%clk 0:02:52.3]} 3. e5 {[%clk 0:03:01.6]} 3... Nd5 {[%clk 0:02:52.8]}
4. Nf3 {[%clk 0:03:02.5]} 4... Nc6 {[%clk 0:02:52.2]} 5. Bc4 {[%clk 0:03:03.2]}
5... Nb6 {[%clk 0:02:44.4]} 6. Bb3 {[%clk 0:03:03.4]} 6... d5 {[%clk 0:02:42.4]}
7. exd6 {[%clk 0:03:04.3]} 7... Qxd6 {[%clk 0:02:42.5]} 8. O-O {[%clk
0:03:04.5]} 8... Be6 {[%clk 0:02:40.3]} 9. Bxe6 {[%clk 0:03:04.6]} 9... Qxe6
{[%clk 0:02:40.4]} 10. a4 {[%clk 0:03:05.5]} 10... Nd5 {[%clk 0:02:37.6]} 11. d4
{[%clk 0:02:59]} 11... cxd4 {[%clk 0:02:35.7]} 12. Nxd4 {[%clk 0:02:59.4]} 12...
Qd7 {[%clk 0:02:32.8]} 13. Nb5 {[%clk 0:02:52.9]} 13... e6 {[%clk 0:02:28.6]}
14. c4 {[%clk 0:02:50.4]} 14... Ndb4 {[%clk 0:02:28.2]} 15. Qe2 {[%clk
0:02:22.8]} 15... Rd8 {[%clk 0:02:23.1]} 16. N1c3 {[%clk 0:02:08.4]} 16... Qd3
{[%clk 0:02:18.8]} 17. Nc7+ {[%clk 0:02:02]} 17... Kd7 {[%clk 0:02:15.4]} 18.
Rd1 {[%clk 0:02:01.6]} 18... Qxd1+ {[%clk 0:02:00.4]} 19. Qxd1+ {[%clk 0:01:56]}
19... Kxc7 {[%clk 0:02:01]} 20. Bf4+ {[%clk 0:01:42]} 20... e5 {[%clk
0:01:56.8]} 21. Nb5+ {[%clk 0:01:41.8]} 21... Kc8 {[%clk 0:01:53.3]} 22. Qg4+
{[%clk 0:01:40.5]} 22... Kb8 {[%clk 0:01:50.8]} 23. Be3 {[%clk 0:01:28.4]} 23...
Nc2 {[%clk 0:01:17.8]} 24. Rd1 {[%clk 0:01:11.7]} 24... Be7 {[%clk 0:01:17.6]}
25. Rd5 {[%clk 0:01:02.5]} 25... Nxe3 {[%clk 0:01:14.1]} 26. fxe3 {[%clk
0:01:02.7]} 26... g6 {[%clk 0:01:14.6]} 27. Nc3 {[%clk 0:00:54.9]} 27... f5
{[%clk 0:01:14.7]} 28. Qg3 {[%clk 0:00:47.5]} 28... a6 {[%clk 0:01:04.3]} 29.
Rxd8+ {[%clk 0:00:45.4]} 29... Rxd8 {[%clk 0:01:04.7]} 30. Nd5 {[%clk
0:00:45.9]} 30... Bd6 {[%clk 0:01:05.4]} 31. Qh4 {[%clk 0:00:44.9]} 31... Rd7
{[%clk 0:01:03.8]} 32. Qf6 {[%clk 0:00:44]} 32... Ka7 {[%clk 0:01:03.7]} 33. h4
{[%clk 0:00:33.8]} 33... Bc5 {[%clk 0:01:01.3]} 34. Kf1 {[%clk 0:00:28.1]} 34...
a5 {[%clk 0:00:57.1]} 35. h5 {[%clk 0:00:26.9]} 35... f4 {[%clk 0:00:55.3]} 36.
exf4 {[%clk 0:00:23.9]} 36... exf4 {[%clk 0:00:55.3]} 37. hxg6 {[%clk
0:00:22.6]} 37... hxg6 {[%clk 0:00:56.2]} 38. Qxg6 {[%clk 0:00:19.5]} 38... Rd6
{[%clk 0:00:53.5]} 39. Qe4 {[%clk 0:00:18.4]} 39... Rd8 {[%clk 0:00:53.5]} 40.
Nc3 {[%clk 0:00:13.9]} 40... Rd2 {[%clk 0:00:47.3]} 41. Qxf4 {[%clk 0:00:10.3]}
41... Rxb2 {[%clk 0:00:47.1]} 42. Nb5+ {[%clk 0:00:10.9]} 42... Ka6 {[%clk
0:00:41.4]} 43. Qe4 {[%clk 0:00:10]} 43... Ra2 {[%clk 0:00:32.7]} 44. g4 {[%clk
0:00:05.2]} 44... Rxa4 {[%clk 0:00:32.6]} 45. g5 {[%clk 0:00:05.6]} 45... Ra1+
{[%clk 0:00:28.3]} 46. Ke2 {[%clk 0:00:06.1]} 46... Rg1 {[%clk 0:00:28.7]} 47.
g6 {[%clk 0:00:04.3]} 47... a4 {[%clk 0:00:22.7]} 48. Qe8 {[%clk 0:00:05.1]}
48... a3 {[%clk 0:00:19.4]} 49. Qa8+ {[%clk 0:00:05.8]} 49... Kb6 {[%clk
0:00:19.9]} 50. Nxa3 {[%clk 0:00:02.2]} 50... Rg2+ {[%clk 0:00:13.5]} 51. Kf1
{[%clk 0:00:02.3]} 51... Rxg6 {[%clk 0:00:14.4]} 52. Nb5 {[%clk 0:00:02.5]}
52... Rf6+ {[%clk 0:00:11.6]} 53. Ke1 {[%clk 0:00:03.2]} 53... Re6+ {[%clk
0:00:09.8]} 54. Kd1 {[%clk 0:00:03.3]} 54... Re4 {[%clk 0:00:07.9]} 55. Qg8
{[%clk 0:00:02.9]} 55... Rf4 {[%clk 0:00:03.6]} 56. Nc3 {[%clk 0:00:02.9]} 56...
Rf1+ {[%clk 0:00:04.2]} 57. Ke2 {[%clk 0:00:02.5]} 57... Rf2+ {[%clk 0:00:04.9]}
58. Ke1 {[%clk 0:00:03.3]} 58... Rc2 {[%clk 0:00:03.9]} 59. Na4+ {[%clk
0:00:03.6]} 59... Ka5 {[%clk 0:00:02.8]} 60. Nxc5 {[%clk 0:00:04.5]} 60... Kb4
{[%clk 0:00:03.6]} 61. Nxb7 {[%clk 0:00:03.9]} 61... Nd4 {[%clk 0:00:03.4]} 62.
Qf8+ {[%clk 0:00:03.1]} 62... Kc3 {[%clk 0:00:03.7]} 63. Qa3+ {[%clk 0:00:03]}
63... Kxc4 {[%clk 0:00:03.2]} 64. Nd6+ {[%clk 0:00:02.7]} 64... Kd5 {[%clk
0:00:03.7]} 65. Kd1 {[%clk 0:00:02.9]} 65... Rc6 {[%clk 0:00:03.9]} 66. Ne8
{[%clk 0:00:02.7]} 66... Nb5 {[%clk 0:00:04.3]} 67. Qb3+ {[%clk 0:00:03]} 67...
Kc5 {[%clk 0:00:04.7]} 68. Qe3+ {[%clk 0:00:03.3]} 68... Kc4 {[%clk 0:00:04.9]}
69. Qe4+ {[%clk 0:00:03.2]} 69... Kc5 {[%clk 0:00:05.2]} 70. Qe3+ {[%clk
0:00:03.2]} 70... Kc4 {[%clk 0:00:05.6]} 71. Ng7 {[%clk 0:00:03.5]} 71... Rd6+
{[%clk 0:00:06.1]} 72. Kc1 {[%clk 0:00:03.3]} 72... Nd4 {[%clk 0:00:06.6]} 73.
Qe4 {[%clk 0:00:02.3]} 73... Kc3 {[%clk 0:00:06.7]} 74. Qe3+ {[%clk 0:00:02.9]}
74... Kc4 {[%clk 0:00:07.2]} 75. Qe4 {[%clk 0:00:03.6]} 75... Kc3 {[%clk
0:00:07.6]} 76. Qe1+ {[%clk 0:00:04.1]} 76... Kc4 {[%clk 0:00:08.2]} 77. Ne8
{[%clk 0:00:02.2]} 77... Nb3+ {[%clk 0:00:08.7]} 78. Kc2 {[%clk 0:00:02.3]}
78... Rd2+ {[%clk 0:00:08.8]} 79. Kb1 {[%clk 0:00:03.1]} 79... Kc3 {[%clk
0:00:07.7]} 80. Qe3+ {[%clk 0:00:03.1]} 80... Rd3 {[%clk 0:00:08.2]} 81. Qe5+
{[%clk 0:00:03.8]} 81... Kc4 {[%clk 0:00:08.9]} 82. Nd6+ {[%clk 0:00:04.1]}
82... Kb4 {[%clk 0:00:09.1]} 83. Qb5+ {[%clk 0:00:04.8]} 83... Kc3 {[%clk
0:00:07.4]} 84. Qc6+ {[%clk 0:00:05.4]} 84... Kd4 {[%clk 0:00:05.8]} 85. Qe4+
{[%clk 0:00:04.6]} 85... Kc3 {[%clk 0:00:04.6]} 86. Nb5+ {[%clk 0:00:04.9]}
86... Kd2 {[%clk 0:00:05]} 87. Kb2 {[%clk 0:00:03.9]} 87... Nd4 {[%clk
0:00:04.6]} 88. Nxd4 {[%clk 0:00:03.6]} 88... Re3 {[%clk 0:00:04]} 89. Qf4
{[%clk 0:00:03.2]} 89... Kd3 {[%clk 0:00:04.3]} 90. Nf3 {[%clk 0:00:03.4]} 90...
Re2+ {[%clk 0:00:04.6]} 91. Kb3 {[%clk 0:00:03.9]} 91... Re4 {[%clk 0:00:05.5]}
92. Qd2# {[%clk 0:00:04.1]} 1-0

[Event "Late-Titled-Tuesday-Blitz-February-20-2024"]
[Site "Chess.com"]
[Date "2024.02.20"]
[Round "11"]
[White "BogdanDeac"]
[Black "mishanick"]
[Result "0-1"]
[WhiteElo "3047"]
[BlackElo "3015"]
[TimeControl "180+1"]
[EndTime "16:09:40 PST"]
[Termination "mishanick won by resignation"]

1. d4 {[%clk 0:03:00.9]} 1... Nf6 {[%clk 0:02:59.1]} 2. c4 {[%clk 0:03:01.1]}
2... e6 {[%clk 0:02:59.5]} 3. Nf3 {[%clk 0:03:01.2]} 3... d5 {[%clk 0:03:00.1]}
4. g3 {[%clk 0:03:01.5]} 4... Be7 {[%clk 0:02:59.3]} 5. Bg2 {[%clk 0:03:01.6]}
5... O-O {[%clk 0:03:00]} 6. O-O {[%clk 0:03:02.2]} 6... dxc4 {[%clk 0:03:00.6]}
7. Qc2 {[%clk 0:03:01.8]} 7... a6 {[%clk 0:03:00.6]} 8. a4 {[%clk 0:02:56.9]}
8... Bd7 {[%clk 0:03:00.8]} 9. Qxc4 {[%clk 0:02:57.4]} 9... b5 {[%clk
0:03:01.4]} 10. Qc2 {[%clk 0:02:57.6]} 10... Nc6 {[%clk 0:03:01.5]} 11. Bd2
{[%clk 0:02:57.5]} 11... bxa4 {[%clk 0:03:00.7]} 12. Rxa4 {[%clk 0:02:48.8]}
12... Nd5 {[%clk 0:03:00.7]} 13. Ra1 {[%clk 0:02:39.3]} 13... a5 {[%clk
0:02:57.4]} 14. Rd1 {[%clk 0:02:32.8]} 14... Ncb4 {[%clk 0:02:57.6]} 15. Qc1
{[%clk 0:02:24]} 15... Bb5 {[%clk 0:02:53.6]} 16. Nc3 {[%clk 0:02:16.6]} 16...
Bc6 {[%clk 0:02:51.4]} 17. e4 {[%clk 0:01:47.8]} 17... Nf6 {[%clk 0:02:47.6]}
18. Ne5 {[%clk 0:01:14.8]} 18... Bb7 {[%clk 0:02:46.7]} 19. Be3 {[%clk
0:01:11.7]} 19... c6 {[%clk 0:02:32.6]} 20. b3 {[%clk 0:01:06.7]} 20... Qc7
{[%clk 0:02:26]} 21. Nc4 {[%clk 0:01:05.6]} 21... Nd7 {[%clk 0:02:21]} 22. Bf4
{[%clk 0:00:57.7]} 22... Qd8 {[%clk 0:02:20.2]} 23. Na4 {[%clk 0:00:53.6]} 23...
Ba6 {[%clk 0:02:17.2]} 24. Nc5 {[%clk 0:00:47.5]} 24... Bxc4 {[%clk 0:02:15.8]}
25. Qxc4 {[%clk 0:00:43.5]} 25... Qc8 {[%clk 0:02:09]} 26. Na4 {[%clk
0:00:18.2]} 26... Qb7 {[%clk 0:02:03.3]} 27. h3 {[%clk 0:00:18.4]} 27... Rfc8
{[%clk 0:02:02.9]} 28. Be3 {[%clk 0:00:18.1]} 28... Nf6 {[%clk 0:02:00.4]} 29.
Nc5 {[%clk 0:00:15.3]} 29... Qc7 {[%clk 0:01:56.9]} 30. Ra4 {[%clk 0:00:12.4]}
30... Nd7 {[%clk 0:01:52]} 31. Nxd7 {[%clk 0:00:10]} 31... Qxd7 {[%clk
0:01:52.9]} 32. Rda1 {[%clk 0:00:10.3]} 32... Qd8 {[%clk 0:01:51.9]} 33. Kh2
{[%clk 0:00:06.6]} 33... h6 {[%clk 0:01:49.6]} 34. h4 {[%clk 0:00:05.7]} 34...
Qc7 {[%clk 0:01:49.8]} 35. Kg1 {[%clk 0:00:05.1]} 35... Qd8 {[%clk 0:01:48.6]}
36. Bf3 {[%clk 0:00:05.1]} 36... Rcb8 {[%clk 0:01:48.1]} 37. Kg2 {[%clk
0:00:05.2]} 37... Rb5 {[%clk 0:01:42.7]} 38. Bd2 {[%clk 0:00:04.9]} 38... Rc8
{[%clk 0:01:28.7]} 39. Be3 {[%clk 0:00:04.9]} 39... Qc7 {[%clk 0:01:27]} 40. Rd1
{[%clk 0:00:04.7]} 40... Bd6 {[%clk 0:01:24.4]} 41. Qc3 {[%clk 0:00:04.3]} 41...
Qb8 {[%clk 0:01:20.7]} 42. Qc4 {[%clk 0:00:04.3]} 42... Na6 {[%clk 0:01:12.7]}
43. Rda1 {[%clk 0:00:04]} 43... Bb4 {[%clk 0:01:10.8]} 44. Rc1 {[%clk
0:00:03.6]} 44... Be7 {[%clk 0:01:03.3]} 45. Rca1 {[%clk 0:00:03.4]} 45... Bd8
{[%clk 0:01:03.5]} 46. Rb1 {[%clk 0:00:03.3]} 46... Nb4 {[%clk 0:01:02.4]} 47.
Rc1 {[%clk 0:00:03]} 47... Rb7 {[%clk 0:00:57.2]} 48. Bf4 {[%clk 0:00:02.9]}
48... Qa7 {[%clk 0:00:52.8]} 49. Rca1 {[%clk 0:00:02.6]} 49... Qb6 {[%clk
0:00:50.2]} 50. Be3 {[%clk 0:00:02.8]} 50... Qc7 {[%clk 0:00:49.8]} 51. Rxa5
{[%clk 0:00:02.9]} 51... Qxa5 {[%clk 0:00:44.8]} 52. Rxa5 {[%clk 0:00:03.5]}
52... Bxa5 {[%clk 0:00:45.7]} 53. Be2 {[%clk 0:00:04.1]} 53... Bd8 {[%clk
0:00:45.7]} 54. Bf3 {[%clk 0:00:02.8]} 54... Be7 {[%clk 0:00:46]} 55. d5 {[%clk
0:00:03.4]} 55... exd5 {[%clk 0:00:41.8]} 56. exd5 {[%clk 0:00:03.6]} 56... Rbc7
{[%clk 0:00:33.4]} 57. dxc6 {[%clk 0:00:03.9]} 57... Nxc6 {[%clk 0:00:33.4]} 58.
Bf4 {[%clk 0:00:04.1]} 58... Ne5 {[%clk 0:00:32.3]} 59. Qd5 {[%clk 0:00:03.2]}
59... Rc5 {[%clk 0:00:32.2]} 60. Qb7 {[%clk 0:00:03.3]} 60... Nxf3 {[%clk
0:00:28.8]} 61. Qxe7 {[%clk 0:00:03.1]} 61... Nd4 {[%clk 0:00:26.5]} 62. b4
{[%clk 0:00:03.3]} 62... Rc4 {[%clk 0:00:21.4]} 63. Qd7 {[%clk 0:00:03]} 63...
Ne6 {[%clk 0:00:19.8]} 64. Be3 {[%clk 0:00:02.5]} 64... Rd8 {[%clk 0:00:18.3]}
65. Qb5 {[%clk 0:00:02.2]} 65... Rcc8 {[%clk 0:00:18.4]} 66. Qa6 {[%clk
0:00:01.9]} 66... Ra8 {[%clk 0:00:18.7]} 67. Qc6 {[%clk 0:00:02.3]} 67... Rdc8
{[%clk 0:00:18.4]} 68. Qd5 {[%clk 0:00:02.6]} 68... Rab8 {[%clk 0:00:18.3]} 69.
b5 {[%clk 0:00:02.7]} 69... Nc7 {[%clk 0:00:18.7]} 70. Qf5 {[%clk 0:00:02.6]}
70... Nxb5 {[%clk 0:00:06.2]} 71. Qg4 {[%clk 0:00:03.1]} 71... Nc7 {[%clk
0:00:03.7]} 72. Bxh6 {[%clk 0:00:02.8]} 72... Ne6 {[%clk 0:00:04.4]} 73. Be3
{[%clk 0:00:03.4]} 73... Rb2 {[%clk 0:00:03.8]} 74. h5 {[%clk 0:00:03.4]} 74...
Rc3 {[%clk 0:00:04.1]} 75. Qe4 {[%clk 0:00:03.2]} 75... Rbc2 {[%clk 0:00:03.5]}
76. h6 {[%clk 0:00:03]} 76... Rc4 {[%clk 0:00:04.1]} 77. Qa8+ {[%clk 0:00:02.4]}
77... Rc8 {[%clk 0:00:04.2]} 78. Qe4 {[%clk 0:00:02.6]} 78... R2c4 {[%clk
0:00:04.3]} 79. Qe5 {[%clk 0:00:02.6]} 79... gxh6 {[%clk 0:00:03.7]} 80. Bxh6
{[%clk 0:00:02.6]} 80... R4c5 {[%clk 0:00:04.2]} 81. Qe3 {[%clk 0:00:02.6]}
81... Rf5 {[%clk 0:00:03.4]} 82. Qd2 {[%clk 0:00:02.7]} 82... Rf6 {[%clk
0:00:03.6]} 83. Be3 {[%clk 0:00:03]} 83... Rg6 {[%clk 0:00:04.2]} 84. Qd5 {[%clk
0:00:03.2]} 84... Re8 {[%clk 0:00:04.3]} 85. Qf5 {[%clk 0:00:03.2]} 85... Ng7
{[%clk 0:00:04.8]} 86. Qd3 {[%clk 0:00:03]} 86... Ne6 {[%clk 0:00:05.1]} 87. Qd7
{[%clk 0:00:02.6]} 87... Rd8 {[%clk 0:00:05.2]} 88. Qe7 {[%clk 0:00:03.1]} 88...
Rc8 {[%clk 0:00:05.6]} 89. Qd7 {[%clk 0:00:03.4]} 89... Rd8 {[%clk 0:00:06]} 90.
Qb7 {[%clk 0:00:04.1]} 90... Ng7 {[%clk 0:00:05.8]} 91. Bf4 {[%clk 0:00:03.6]}
91... Ne6 {[%clk 0:00:05.9]} 92. Be3 {[%clk 0:00:04]} 92... Re8 {[%clk
0:00:06.4]} 93. Qa7 {[%clk 0:00:04.2]} 93... Rf8 {[%clk 0:00:06.8]} 94. Qa4
{[%clk 0:00:04.3]} 94... Ng7 {[%clk 0:00:07.2]} 95. Qe4 {[%clk 0:00:04.3]} 95...
Re8 {[%clk 0:00:07.7]} 96. Qd5 {[%clk 0:00:04.8]} 96... Rge6 {[%clk 0:00:08]}
97. Qd3 {[%clk 0:00:04.5]} 97... Rg6 {[%clk 0:00:08.2]} 98. Qc4 {[%clk
0:00:03.7]} 98... Nf5 {[%clk 0:00:08.3]} 99. Bf4 {[%clk 0:00:03.7]} 99... Nh4+
{[%clk 0:00:08]} 100. Kf1 {[%clk 0:00:03.8]} 100... Nf5 {[%clk 0:00:07.9]} 101.
Qb5 {[%clk 0:00:03.5]} 101... Ng7 {[%clk 0:00:08.1]} 102. Be5 {[%clk 0:00:03.8]}
102... Rg5 {[%clk 0:00:07.5]} 103. f4 {[%clk 0:00:04.1]} 103... Rh5 {[%clk
0:00:07.9]} 104. g4 {[%clk 0:00:04.2]} 104... Rh1+ {[%clk 0:00:07.9]} 105. Kg2
{[%clk 0:00:04.3]} 105... Re1 {[%clk 0:00:08.5]} 106. Kf2 {[%clk 0:00:04.5]}
106... Re4 {[%clk 0:00:08.8]} 107. Kf3 {[%clk 0:00:04.9]} 107... Re1 {[%clk
0:00:09.2]} 108. Kf2 {[%clk 0:00:05.2]} 108... Re4 {[%clk 0:00:09.4]} 109. Kf3
{[%clk 0:00:05.2]} 109... Re1 {[%clk 0:00:09.7]} 110. Qb4 {[%clk 0:00:05.6]}
110... Rf1+ {[%clk 0:00:07.4]} 111. Kg2 {[%clk 0:00:05.6]} 111... Rd1 {[%clk
0:00:07.4]} 112. Qb5 {[%clk 0:00:05.5]} 112... Red8 {[%clk 0:00:05.9]} 113. g5
{[%clk 0:00:05.4]} 113... Ne6 {[%clk 0:00:05]} 114. Kf3 {[%clk 0:00:05.4]}
114... R1d3+ {[%clk 0:00:04.8]} 115. Kg4 {[%clk 0:00:05.4]} 115... Ng7 {[%clk
0:00:04.1]} 116. Qb7 {[%clk 0:00:05.1]} 116... R3d7 {[%clk 0:00:04.3]} 117. Qb3
{[%clk 0:00:04.7]} 117... Ne6 {[%clk 0:00:04.7]} 118. g6 {[%clk 0:00:04.8]}
118... Rd5 {[%clk 0:00:03.1]} 119. Qb6 {[%clk 0:00:04.4]} 119... Nf8 {[%clk
0:00:02.4]} 120. gxf7+ {[%clk 0:00:04.2]} 120... Kxf7 {[%clk 0:00:03.3]} 121.
Qf6+ {[%clk 0:00:04.6]} 121... Ke8 {[%clk 0:00:03.9]} 122. Qg7 {[%clk
0:00:04.7]} 122... R5d7 {[%clk 0:00:04]} 123. Qf6 {[%clk 0:00:04.2]} 123... Rf7
{[%clk 0:00:04.3]} 124. Qc6+ {[%clk 0:00:04.3]} 124... Rfd7 {[%clk 0:00:04.7]}
125. f5 {[%clk 0:00:04.2]} 125... Kf7 {[%clk 0:00:01.5]} 126. Kg5 {[%clk
0:00:04.3]} 126... Ke8 {[%clk 0:00:01.6]} 127. Kf4 {[%clk 0:00:04]} 127... Kf7
{[%clk 0:00:02.1]} 128. Kg5 {[%clk 0:00:03.8]} 128... Ke8 {[%clk 0:00:02.6]}
129. Kg4 {[%clk 0:00:04.5]} 129... Kf7 {[%clk 0:00:02.9]} 130. Qc4+ {[%clk
0:00:04.8]} 130... Ke8 {[%clk 0:00:03.1]} 131. Kf4 {[%clk 0:00:05.1]} 131... Re7
{[%clk 0:00:02.9]} 132. Bf6 {[%clk 0:00:04.4]} 132... Red7 {[%clk 0:00:02.7]}
133. Bxd8 {[%clk 0:00:04.3]} 133... Rxd8 {[%clk 0:00:02.4]} 134. Qc6+ {[%clk
0:00:04.4]} 134... Rd7 {[%clk 0:00:02.8]} 135. Kg5 {[%clk 0:00:04.4]} 135... Kf7
{[%clk 0:00:03.1]} 136. Qc4+ {[%clk 0:00:04.1]} 136... Kg7 {[%clk 0:00:03.1]}
137. Qc3+ {[%clk 0:00:03.9]} 137... Kg8 {[%clk 0:00:03.5]} 138. Qc4+ {[%clk
0:00:03.9]} 138... Rf7 {[%clk 0:00:03.4]} 139. Qb3 {[%clk 0:00:03.1]} 139...
Nh7+ {[%clk 0:00:03.7]} 140. Kg6 {[%clk 0:00:03.4]} 140... Nf8+ {[%clk
0:00:04.6]} 141. Kg5 {[%clk 0:00:03.6]} 141... Kg7 {[%clk 0:00:05]} 142. Qc3+
{[%clk 0:00:03.5]} 142... Kg8 {[%clk 0:00:05.1]} 143. Kg4 {[%clk 0:00:04]}
143... Nh7 {[%clk 0:00:05.5]} 144. Qc4 {[%clk 0:00:04.2]} 144... Nf6+ {[%clk
0:00:05.5]} 145. Kg5 {[%clk 0:00:04.2]} 145... Nh7+ {[%clk 0:00:06.2]} 146. Kh6
{[%clk 0:00:04.5]} 146... Nf8 {[%clk 0:00:05.8]} 147. f6 {[%clk 0:00:05]} 147...
Nd7 {[%clk 0:00:03.2]} 148. Qc8+ {[%clk 0:00:04.5]} 148... Nf8 {[%clk
0:00:03.5]} 149. Qg4+ {[%clk 0:00:04.4]} 149... Kh8 {[%clk 0:00:03.8]} 150. Qd4
{[%clk 0:00:04.6]} 150... Rh7+ {[%clk 0:00:03.3]} 151. Kg5 {[%clk 0:00:04]}
151... Ne6+ {[%clk 0:00:04.2]} 152. Kg6 {[%clk 0:00:04.6]} 152... Nxd4 {[%clk
0:00:05.1]} 153. f7 {[%clk 0:00:05.2]} 153... Ne6 {[%clk 0:00:05.8]} 154. Kf6
{[%clk 0:00:05.8]} 154... Nf8 {[%clk 0:00:06.4]} 0-1